fUSD/lending_fUSD_20241028
["ID","MTS","AMOUNT","RATE_DAILY","PERIOD"]
[340936064,1730134238429,-309.4967883,0.00031568,2]
[340936065,1730134238438,-883.64,0.00031692,2]
[340936066,1730134238448,-352.099049,0.00032,10]
[340936067,1730134238458,-200.0,0.00032765,2]
[340936068,1730134238467,-253.22716905,0.000328,7]
[340936069,1730134238478,-885.78072393,0.00032801,15]
[340936070,1730134238487,-183.67,0.0003314,2]
[340936071,1730134238500,-309.4967883,0.0003331,2]
[340936072,1730134238514,-883.64,0.00033956,2]
[340936073,1730134238529,-885.78072393,0.00034171,15]
[340936074,1730134238543,-503.527708,0.000345,20]
[340936075,1730134238557,-162.89,0.00034553,2]
[340936076,1730134238569,-1000.0,0.00034896,2]
[340936077,1730134238580,-10905.83378756,0.00035,10]
[340936078,1730134238591,-520.55126291,0.00035,10]
[340936079,1730134238603,-309.4967883,0.00035053,2]
[340936080,1730134238616,-885.78072393,0.00035542,15]
[340936081,1730134238628,-152.0,0.0003573,5]
[340936082,1730134238640,-1992.92105848,0.00035731,7]
[340936083,1730134238653,-407540.70509627,0.00035731,7]
[340936084,1730134238684,-1363.02997939,0.00035731,7]
[340936087,1730134238708,-37064.807827,0.00035731,7]
[340936090,1730134238724,-616.0766574,0.00035731,7]
[340936092,1730134238739,-600.5,0.00035731,7]
[340936095,1730134238755,-586.1359984,0.00035731,7]
[340936097,1730134238769,-293.12458479,0.00035731,7]
[340936135,1730134240048,-2225.61086373,0.00035731,7]
[340936136,1730134240063,-1970.595,0.00035731,7]
[340936156,1730134243055,-7110.25939237,0.00035731,7]
[340936157,1730134243148,-1591.4825016,0.00035731,7]
[340936161,1730134245937,-688.184246,0.00035731,7]
[340936162,1730134245957,-1724.279162,0.00035731,7]
[340936163,1730134246049,-72019.69032205,0.00035731,7]
[340936164,1730134246063,-57796.08638462,0.00035731,7]
[340936165,1730134246157,-313.42888698,0.00035731,7]
[340936287,1730134499862,150.0,0.00017605,2]
[340936290,1730134933743,158.61,0.00015342,2]
[340936334,1730135432107,-150.0,0.000345,20]
[340936335,1730135432117,-112.0,0.00034618,2]
[340936336,1730135432162,-287.82770227,0.00034618,2]
[340936337,1730135432172,-604.4999,0.000356,30]
[340936338,1730135432184,-367.25957779,0.00035631,2]
[340936339,1730135432196,-45.53412221,0.00035631,2]
[340936340,1730135432207,-285.7132,0.00035631,2]
[340936341,1730135432218,-2096.2278,0.000357,2]
[340936342,1730135432229,-262.5797,0.000357,2]
[340936343,1730135432238,-500.0,0.0003573,2]
[340936344,1730135432251,-903.0,0.0003573,2]
[340936345,1730135432260,-331.54286035,0.00035731,7]
[340936346,1730135432272,-20291.14985888,0.00035731,7]
[340936347,1730135432283,-1450.0,0.00035731,7]
[340936348,1730135432300,-429.68316952,0.00035731,7]
[340936349,1730135432389,-5743.64852041,0.00035731,7]
[340936350,1730135432405,-57364.52735404,0.00035731,7]
[340936351,1730135432415,-7110.25939237,0.00035731,7]
[340936352,1730135432425,-856.13,0.00035731,2]
[340936353,1730135432434,-7186.92,0.00035731,2]
[340936354,1730135432443,-1338.47,0.00035731,2]
[340936355,1730135432453,-936.688,0.00035969,43]
[340936357,1730135432463,-1504.62,0.00037717,2]
[340936359,1730135432472,-150.0,0.00037782,2]
[340936361,1730135432481,-23900.0,0.00037804,2]
[340936363,1730135432491,-349.99,0.00038,2]
[340936365,1730135432500,-162.89,0.00038097,2]
[340936367,1730135432510,-184.42,0.00038136,2]
[340936370,1730135432519,-280.957,0.00038152,2]
[340936373,1730135432529,-400.0,0.00038153,2]
[340936375,1730135432539,-176.12,0.00038156,120]
[340936378,1730135432551,-600.0,0.00038242,2]
[340936380,1730135432560,-150.0,0.00038292,7]
[340936382,1730135432570,-250.0,0.00038304,120]
[340936384,1730135432579,-200.0,0.00038308,2]
[340936386,1730135432589,-5105.17,0.00038356,2]
[340936388,1730135432599,-500.0,0.0003847,2]
[340936390,1730135432609,-1981.0,0.00038548,2]
[340936392,1730135432618,-1250.0,0.00038548,2]
[340936394,1730135432628,-2205.0,0.00038548,2]
[340936396,1730135432637,-236.56,0.00039095,2]
[340936398,1730135432647,-236.56,0.00039105,2]
[340936400,1730135432658,-236.56,0.00039116,2]
[340936402,1730135432668,-236.56,0.00039126,2]
[340936404,1730135432678,-236.56,0.00039136,2]
[340936406,1730135432687,-236.56,0.00039146,2]
[340936408,1730135432697,-236.56,0.00039157,2]
[340936410,1730135432707,-236.56,0.00039167,2]
[340936412,1730135432716,-236.56,0.00039177,2]
[340936414,1730135432726,-236.56,0.00039188,2]
[340936416,1730135432735,-236.56,0.00039198,2]
[340936419,1730135432745,-236.56,0.00039208,2]
[340936421,1730135432755,-236.56,0.00039219,2]
[340936423,1730135432764,-236.56,0.00039229,2]
[340936425,1730135432774,-236.56,0.00039239,2]
[340936426,1730135432784,-236.56,0.0003925,2]
[340936428,1730135432793,-236.56,0.0003926,2]
[340936431,1730135432802,-236.56,0.0003927,2]
[340936433,1730135432812,-236.56,0.0003928,2]
[340936435,1730135432822,-236.56,0.00039291,2]
[340936437,1730135432832,-280.957,0.00039312,2]
[340936439,1730135432842,-152.0,0.00039977,3]
[340936441,1730135432852,-531.46843443,0.000406,15]
[340936443,1730135432864,-162.89,0.00040637,2]
[340936445,1730135432874,-19829.76795151,0.000407,2]
[340936862,1730135438151,-452.90409866,0.000407,2]
[340936863,1730135438317,-638.76806,0.000407,2]
[340936864,1730135438427,-2371.72828983,0.000407,2]
[340936865,1730135438437,-5386.02182519,0.000407,2]
[340936938,1730135440163,-325.03807481,0.000407,2]
[340936939,1730135440173,-2172.4569251,0.000407,2]
[340936940,1730135440328,-2435.6756749,0.000407,2]
[340936941,1730135440339,-736.1919,0.000407,2]
[340936942,1730135440350,-1000.0,0.000407,2]
[340936943,1730135440360,-2500.0,0.000407,2]
[340936944,1730135440370,-1233.3539,0.000408,2]
[340936945,1730135440379,-15493.2024,0.000408,2]
[340936946,1730135440388,-10649.25967523,0.000408,2]
[340937177,1730135443387,-751.09,0.00038584,2]
[340937178,1730135443396,-2244.80214067,0.000408,2]
[340937184,1730135446370,-13298.3050841,0.000408,2]
[340937185,1730135446380,-327.7768,0.000408,2]
[340937186,1730135446389,-173.57601218,0.000408,28]
[340937187,1730135446398,-4550.4523,0.000408,2]
[340937188,1730135446409,-500.0,0.000408,2]
[340937189,1730135446419,-1318.0814,0.000408,2]
[340937190,1730135446431,-309.4967883,0.000408,2]
[340937191,1730135446442,-751.09,0.00040848,2]
[340937192,1730135446452,-500.0,0.00040873,2]
[340937193,1730135446462,-335.55665712,0.00040873,5]
[340937194,1730135446471,-4694.98411558,0.0004089,9]
[340937195,1730135446481,-4432.0052,0.000409,2]
[340937196,1730135446491,-68808.67564272,0.000409,2]
[340937197,1730135446503,-7383.79919372,0.000409,2]
[340937198,1730135446526,-1925.34077,0.000409,2]
[340937199,1730135446537,-27447.60000001,0.000409,2]
[340937201,1730135488068,165.36,0.00015342,2]
[340937203,1730136308251,373226.50172606,0.00016,2]
[340937274,1730136632229,-4299.95861563,0.00021,4]
[340937275,1730136632240,-2210.33570492,0.00022,2]
[340937276,1730136632287,-1261.3902112,0.00022,2]
[340937277,1730136632298,-657.28788836,0.00022,5]
[340937278,1730136632310,-1330.89259715,0.0002495,2]
[340937279,1730136632319,-1039.13146629,0.00025,2]
[340937280,1730136632329,-583.1642724,0.000264,2]
[340937281,1730136632339,-3446.58,0.000264,2]
[340937282,1730136632350,-277.0,0.000267,2]
[340937283,1730136632360,-3794.12058486,0.0003088,2]
[340937284,1730136632370,-350.00652401,0.00035,2]
[340937285,1730136632381,-1262.78337545,0.00035731,7]
[340937286,1730136632392,-3294.98109314,0.00035731,7]
[340937287,1730136632404,-17183.38539031,0.00035731,7]
[340937288,1730136632414,-877.3,0.00035966,43]
[340937289,1730136632424,-162.89,0.00037224,2]
[340937290,1730136632435,-200.0,0.00037769,2]
[340937291,1730136632446,-1867.57446857,0.00037901,2]
[340937292,1730136632462,-1450.0,0.00037901,2]
[340937293,1730136632475,-672.95072263,0.00037901,2]
[340937294,1730136632487,-409.42814049,0.00037901,2]
[340937295,1730136632499,-3060.19211404,0.00037901,2]
[340937296,1730136632514,-332.82649927,0.00037901,2]
[340937349,1730136638472,-16107.028055,0.00037901,2]
[340937350,1730136638483,-675.98,0.00037999,2]
[340937351,1730136638493,-1511.908,0.00038423,2]
[340937352,1730136638504,-250.0,0.00038999,120]
[340937353,1730136638514,-320.0,0.00038999,2]
[340937354,1730136638525,-284.46925,0.00039198,2]
[340937355,1730136638535,-1553.4126968,0.00039384,2]
[340937538,1730136640534,-688.82,0.00038423,2]
[340937584,1730136643284,-1516.18,0.00038423,2]
[340937585,1730136643294,-1878.5873032,0.00039384,2]
[340937586,1730136643304,-680.0,0.00039937,2]
[340937587,1730136643314,-8162.16797157,0.0004,2]
[340937588,1730136643334,-1078.17422377,0.0004,2]
[340937589,1730136643345,-33.60554427,0.00040114,2]
[340937590,1730136643427,-128.79445573,0.00040114,2]
[340937591,1730136643437,-397.11554977,0.00040263,2]
[340937592,1730136643449,-278.86445023,0.00040263,2]
[340937593,1730136643459,-150.0,0.00040288,7]
[340937594,1730136643468,-3283.126,0.000406,2]
[340937595,1730136643479,-1000.0,0.000407,2]
[340937596,1730136643488,-4809.53057733,0.000407,2]
[340937601,1730136646398,-2498.61282267,0.000407,2]
[340937602,1730136646409,-500.63044905,0.000407,15]
[340937603,1730136646418,-224.668,0.000407,2]
[340937604,1730136646428,-2500.0,0.000407,2]
[340937605,1730136646654,-309.4967883,0.000407,2]
[340937606,1730136646671,-162.33622317,0.00040773,5]
[340937607,1730136646681,-500.0,0.00040773,5]
[340937608,1730136646691,-500.0,0.000408,2]
[340937609,1730136646701,-14454.1475206,0.000408,2]
[340937635,1730136686590,8666.52637581,0.00019,2]
[340937638,1730136693040,159.37,0.00015342,2]
[340937639,1730136777558,1500.0,0.00019,2]
[340937642,1730137237260,10304.33841378,0.000244,2]
[340937666,1730137831424,-210.0,0.000265,2]
[340937667,1730137831434,-1811.8935898,0.00036574,2]
[340937668,1730137831444,-163.87041872,0.00036674,2]
[340937669,1730137831454,-489.90935082,0.00037174,2]
[340937670,1730137831495,-218.71064918,0.00037174,2]
[340937671,1730137831505,-1437.91712652,0.00037617,2]
[340937672,1730137831517,-2166.4504729,0.00037617,2]
[340937673,1730137831527,-403.91405826,0.00037717,2]
[340937674,1730137831538,-644.249156,0.00038255,2]
[340937675,1730137831550,-1807.54874978,0.00038288,2]
[340937676,1730137836670,-150.0,0.00037074,2]
[340937682,1730137837604,-114.76530792,0.00037074,2]
[340937683,1730137837614,-397.45125022,0.00038288,2]
[340937684,1730137837624,-4443.14864962,0.00038447,2]
[340937685,1730137837660,-553.208,0.00038447,2]
[340937839,1730137839532,-1719.62335038,0.00038447,2]
[340937842,1730137839547,-150.0,0.00038563,7]
[340937844,1730137839557,-1913.83429264,0.00038576,2]
[340937846,1730137839569,-5026.6,0.00038576,2]
[340937858,1730137839672,-9314.11614386,0.00038576,2]
[340937860,1730137839684,-346.75038372,0.00038576,2]
[340937863,1730137839696,-5000.0,0.00038576,2]
[340938133,1730137842401,-2298.69917978,0.00038576,2]
[340938134,1730137842410,-7115.58913047,0.00038576,2]
[340938140,1730137842458,-42884.41086953,0.00038576,2]
[340938142,1730137842467,-891.26,0.00038599,120]
[340938144,1730137842478,-162.89,0.00038615,2]
[340938146,1730137842487,-250.0,0.00038634,2]
[340938148,1730137842497,-256.0,0.0003874,2]
[340938150,1730137842507,-250.0,0.00038742,120]
[340938152,1730137842516,-543.5,0.00038752,2]
[340938154,1730137842526,-200.0,0.0003887,2]
[340938156,1730137842536,-1781.9,0.0003913,2]
[340938158,1730137842546,-1270.39,0.00039277,2]
[340938160,1730137842555,-186.59,0.0003928,2]
[340938162,1730137842565,-421.4355,0.00039312,2]
[340938164,1730137842575,-708.62,0.00039438,2]
[340938166,1730137842585,-170.664,0.00039543,55]
[340938169,1730137842596,-930.491,0.00039543,55]
[340938171,1730137842606,-367.20632887,0.00039805,2]
[340938173,1730137842618,-376.79367113,0.00039805,2]
[340938175,1730137842628,-4897.07533686,0.000399,30]
[340938177,1730137842639,-12786.86550585,0.000399,30]
[340938180,1730137842655,-8738.93481489,0.000399,30]
[340938182,1730137842666,-10514.22949596,0.000404,2]
[340938186,1730137842689,-2734.9,0.000404,2]
[340938192,1730137842743,-150.0,0.000404,2]
[340938202,1730137842826,-21063.19787234,0.000404,2]
[340938204,1730137842835,-2500.0,0.000405,2]
[340938207,1730137842845,-100000.0,0.000406,2]
[340938208,1730137842854,-172.77066497,0.000406,2]
[340938211,1730137842864,-309.4967883,0.000406,2]
[340938213,1730137842874,-336.33557687,0.00040673,5]
[340938215,1730137842884,-150.0,0.00040685,7]
[340938217,1730137842893,-150.0,0.00040685,7]
[340938220,1730137842902,-182.68743448,0.00040685,7]
[340938223,1730137842911,-203.58107136,0.00040689,31]
[340938225,1730137842922,-37353.8492135,0.0004069,9]
[340938227,1730137842934,-6175.5641386,0.0004069,9]
[340938229,1730137842946,-340.27723481,0.00040699,31]
[340938231,1730137842955,-80169.38828782,0.000407,2]
[340938234,1730137842967,-6014.40299612,0.000407,2]
[340938489,1730137845620,-1728.60546511,0.000407,2]
[340939134,1730137852605,161.39,0.00015342,2]
[340939367,1730137866144,-150.0,0.00043872,20]
[340939369,1730138678242,150.0,0.000244,2]
[340939373,1730138897094,-150.0,0.00043871,20]
[340939394,1730139031550,-434.686,0.00027,7]
[340939395,1730139031564,-972.72507669,0.00037327,2]
[340939402,1730139031665,-495.72833055,0.00037327,2]
[340939403,1730139031677,-282.08056335,0.00037327,2]
[340939404,1730139031691,-150.0,0.00037427,2]
[340939405,1730139031700,-690.71,0.00037627,2]
[340939406,1730139031710,-1220.30376164,0.00038287,2]
[340939407,1730139031719,-112.53150579,0.00038288,2]
[340939408,1730139031730,-2092.46849421,0.00038288,2]
[340939409,1730139031740,-200.0,0.00038999,2]
[340939410,1730139031749,-1051.49248423,0.00039144,2]
[340939411,1730139031761,-8606.23695535,0.00039144,2]
[340939412,1730139031894,-332.17124173,0.00039144,2]
[340939413,1730139037625,-1380.94,0.00039144,2]
[340939416,1730139037682,-3353.94450525,0.00039144,2]
[340939417,1730139037743,-2911.05463704,0.00039144,2]
[340939574,1730139039700,-6264.1601764,0.00039144,2]
[340939576,1730139039710,-250.0,0.00039212,120]
[340939577,1730139039720,-150.0,0.00039277,7]
[340939579,1730139039730,-204.8,0.00039305,2]
[340939581,1730139039739,-362.08,0.00039317,2]
[340939583,1730139039748,-271.75,0.00039357,2]
[340939585,1730139039758,-220.56,0.00039542,2]
[340939587,1730139039767,-744.393,0.0003971,55]
[340939588,1730139039777,-152.89,0.00039802,2]
[340939590,1730139039786,-690.71,0.00039891,2]
[340939592,1730139039796,-795.2,0.00039914,2]
[340939594,1730139039805,-12229.0130382,0.0004,120]
[340939596,1730139039815,-310.56,0.0004,120]
[340939597,1730139039824,-1177.1174706,0.0004,120]
[340939599,1730139039834,-308.53,0.00040274,2]
[340939601,1730139039843,-449.15,0.00040274,2]
[340939603,1730139039853,-903.32843613,0.000404,2]
[340939604,1730139039862,-500.0,0.00040473,2]
[340939606,1730139039872,-100000.0,0.000405,2]
[340939608,1730139039881,-2500.0,0.000405,2]
[340939610,1730139039891,-3303.38823682,0.0004059,9]
[340939612,1730139039902,-238.19406437,0.00040599,31]
[340939614,1730139039911,-903.32843612,0.000406,2]
[340939616,1730139039921,-794.8893,0.000406,2]
[340939618,1730139039930,-212457.83295905,0.000406,2]
[340939628,1730139040031,-645.43815124,0.000406,2]
[340939912,1730139042732,-152.14993496,0.000406,2]
[340939915,1730139042743,-4991.34818872,0.000406,2]
[340940238,1730139045720,-1044.50867472,0.000406,2]
[340940244,1730139045779,-303.54349999,0.000406,2]
[340940256,1730139045893,-1101.96405052,0.000406,2]
[340940263,1730139046005,-16039.24009015,0.000406,2]
[340940893,1730139604196,14384.27158622,0.0002,2]
[340940894,1730139604223,8055.1660373,0.0002,2]
[340940895,1730139907963,136012.81006436,0.00016,2]
[340940901,1730140081388,129949.49170896,0.000145,3]
[340940902,1730140098644,1648.18375139,0.0001439,2]
[340940946,1730140232094,-2124.51640728,0.00021,2]
[340940947,1730140232105,-510.83359263,0.00021,4]
[340941119,1730140239830,-395.36274155,0.00021,4]
[340941121,1730140239842,-3275.77250001,0.00021,4]
[340941153,1730140240143,-867.93339179,0.00021,4]
[340941155,1730140240153,-4088.44520278,0.00026,2]
[340941157,1730140240163,-517.28546505,0.0002604,2]
[340941159,1730140240172,-249.0,0.000268,2]
[340941161,1730140240182,-1724.279162,0.00035731,7]
[340941163,1730140240191,-676.83,0.00037074,2]
[340941165,1730140240201,-213.352,0.00038144,2]
[340941167,1730140240210,-1745.56176466,0.0003815,2]
[340941170,1730140240227,-431.52499971,0.0003815,2]
[340941435,1730140242827,-27.91323563,0.0003815,2]
[340941437,1730140242836,-836.16,0.00038853,2]
[340941439,1730140242846,-362.13534046,0.00039338,2]
[340941447,1730140242909,-314.69465954,0.00039338,2]
[340941449,1730140242918,-271.75,0.00039346,2]
[340941451,1730140242928,-2990.24437918,0.00039348,2]
[340941453,1730140242939,-333.29999972,0.00039348,2]
[340941455,1730140242951,-1813.25853562,0.00039348,2]
[340941467,1730140243052,-13113.01708548,0.00039348,2]
[340941469,1730140243062,-299.99,0.00039348,120]
[340941471,1730140243072,-150.0,0.00039387,7]
[340941473,1730140243082,-151.0,0.00039481,3]
[340941475,1730140243091,-595.514,0.00039481,55]
[340941477,1730140243101,-163.84,0.00039567,2]
[340941479,1730140243110,-250.0,0.00039567,120]
[340941481,1730140243119,-176.44,0.00039873,2]
[340941483,1730140243129,-1000.0,0.000403,7]
[340941485,1730140243139,-1396.0,0.000403,7]
[340941487,1730140243148,-167.83,0.00040495,2]
[340941489,1730140243158,-100000.0,0.000405,2]
[340941492,1730140243167,-26192.3669,0.000405,2]
[340941494,1730140243177,-2500.0,0.000405,2]
[340941496,1730140243187,-309.4967883,0.000405,2]
[340941498,1730140243196,-3654.19625128,0.0004059,9]
[340941500,1730140243205,-166.73584506,0.00040599,31]
[340941501,1730140243215,-500.0,0.00040599,3]
[340941503,1730140243224,-317.34839382,0.00040599,3]
[340941505,1730140243236,-500.0,0.00040599,3]
[340941508,1730140243246,-500.0,0.00040599,3]
[340941511,1730140243255,-500.0,0.00040599,3]
[340941513,1730140243265,-500.0,0.00040599,3]
[340941516,1730140243274,-500.0,0.00040599,3]
[340941519,1730140243284,-500.0,0.00040599,3]
[340941521,1730140243293,-161.9605575,0.00040599,3]
[340941523,1730140243303,-509.32329589,0.00040599,3]
[340941525,1730140243312,-500.0,0.00040599,3]
[340941528,1730140243322,-181.89209012,0.00040599,3]
[340941530,1730140243331,-173.57269596,0.00040599,3]
[340941532,1730140243341,-500.0,0.00040599,3]
[340941534,1730140243350,-500.0,0.00040599,3]
[340941536,1730140243361,-601.50346871,0.00040599,3]
[340941538,1730140243370,-500.0,0.00040599,3]
[340941540,1730140243380,-179.27305303,0.00040599,3]
[340941542,1730140243389,-602.96231094,0.00040599,3]
[340941544,1730140243399,-500.0,0.00040599,3]
[340941546,1730140243408,-500.0,0.00040599,3]
[340941548,1730140243418,-192.59126372,0.00040599,3]
[340941550,1730140243427,-500.0,0.00040599,3]
[340941552,1730140243436,-500.0,0.00040599,3]
[340941553,1730140243447,-500.0,0.00040599,3]
[340941554,1730140243457,-500.0,0.00040599,3]
[340941555,1730140243466,-500.0,0.00040599,3]
[340941556,1730140243480,-500.0,0.00040599,3]
[340941557,1730140243489,-500.0,0.00040599,3]
[340941558,1730140243499,-236.03642482,0.00040599,3]
[340941559,1730140243508,-249.6950862,0.00040599,3]
[340941560,1730140243518,-500.0,0.00040599,3]
[340941561,1730140243527,-500.0,0.00040599,3]
[340941562,1730140243536,-221.47518193,0.00040599,3]
[340941563,1730140243546,-500.0,0.00040599,3]
[340941564,1730140243555,-500.0,0.00040599,3]
[340941566,1730140243565,-500.0,0.00040599,3]
[340941568,1730140243575,-500.0,0.00040599,3]
[340941570,1730140243584,-500.0,0.00040599,3]
[340941572,1730140243593,-209.55719502,0.00040599,3]
[340941574,1730140243603,-631.13634969,0.00040599,3]
[340941576,1730140243612,-500.0,0.00040599,3]
[340941578,1730140243622,-389.63471068,0.00040599,3]
[340941580,1730140243631,-482.82857255,0.00040599,3]
[340941582,1730140243640,-610.91600858,0.00040599,3]
[340941584,1730140243650,-500.0,0.00040599,3]
[340941586,1730140243659,-515.59026414,0.00040599,3]
[340941588,1730140243669,-500.0,0.00040599,3]
[340941590,1730140243678,-500.0,0.00040599,3]
[340941592,1730140243688,-500.0,0.00040599,3]
[340941594,1730140243697,-500.0,0.00040599,3]
[340941596,1730140243706,-611.54198388,0.00040599,3]
[340941598,1730140243716,-1048.34,0.00040599,3]
[340941600,1730140243726,-512.33421672,0.00040599,3]
[340941602,1730140243738,-512.65191265,0.00040599,3]
[340941604,1730140243749,-161.02591734,0.00040599,3]
[340941606,1730140243760,-637.09326017,0.00040599,3]
[340941608,1730140243769,-152.29635817,0.00040599,3]
[340941610,1730140243778,-500.0,0.00040599,3]
[340941612,1730140243788,-500.0,0.00040599,3]
[340941614,1730140243797,-500.0,0.00040599,3]
[340941616,1730140243806,-171.20736162,0.00040599,3]
[340941618,1730140243816,-597.91034142,0.00040599,3]
[340941620,1730140243825,-2242.85,0.00040599,3]
[340941622,1730140243835,-185.05858764,0.00040599,3]
[340941624,1730140243845,-500.0,0.00040599,3]
[340941626,1730140243855,-500.0,0.00040599,3]
[340941628,1730140243864,-500.0,0.00040599,3]
[340941630,1730140243874,-176.26883273,0.00040599,3]
[340941632,1730140243884,-175.5890566,0.00040599,3]
[340941633,1730140243894,-500.0,0.00040599,3]
[340941636,1730140243904,-583.18063118,0.00040599,3]
[340941638,1730140243918,-500.0,0.00040599,3]
[340941640,1730140243927,-500.0,0.00040599,3]
[340941642,1730140243937,-500.0,0.00040599,3]
[340941644,1730140243948,-537.04,0.00040599,3]
[340941646,1730140243958,-500.0,0.00040599,3]
[340941648,1730140243967,-244.59111719,0.00040599,3]
[340941650,1730140243977,-156.74513263,0.00040599,3]
[340941652,1730140243989,-152.95306135,0.00040599,3]
[340941654,1730140243999,-500.0,0.00040599,3]
[340941656,1730140244008,-500.0,0.00040599,3]
[340941658,1730140244018,-537.29600878,0.00040599,3]
[340941660,1730140244027,-233.3450097,0.00040599,3]
[340941662,1730140244037,-500.0,0.00040599,3]
[340941664,1730140244046,-604.34696444,0.00040599,3]
[340941666,1730140244056,-155.87822153,0.00040599,3]
[340941668,1730140244065,-161.93650797,0.00040599,3]
[340941670,1730140244075,-211.44010762,0.00040599,3]
[340941672,1730140244085,-500.0,0.00040599,3]
[340941674,1730140244094,-500.0,0.00040599,3]
[340941676,1730140244104,-500.0,0.00040599,3]
[340941678,1730140244113,-202.35185051,0.00040599,3]
[340941681,1730140244136,-500.0,0.00040599,3]
[340941683,1730140244145,-245000.0,0.000406,2]
[340941685,1730140244156,-13818.00161207,0.000406,2]
[340941687,1730140244165,-456.77453141,0.0004068,9]
[340941689,1730140244175,-257.84346957,0.00040685,7]
[340941691,1730140244185,-190.27082936,0.00040685,7]
[340941693,1730140244195,-456.77453141,0.00040689,9]
[340941695,1730140244205,-913.54906282,0.0004069,9]
[340941697,1730140244214,-500.0,0.00040699,3]
[340941699,1730140244224,-500.0,0.00040699,3]
[340941701,1730140244234,-500.0,0.00040699,3]
[340941703,1730140244243,-500.0,0.00040699,3]
[340941705,1730140244254,-500.0,0.00040699,3]
[340941707,1730140244263,-500.0,0.00040699,3]
[340941709,1730140244272,-500.0,0.00040699,3]
[340941711,1730140244282,-541.30060235,0.00040699,3]
[340941713,1730140244291,-500.0,0.00040699,3]
[340941716,1730140244301,-500.0,0.00040699,3]
[340941718,1730140244311,-500.0,0.00040699,3]
[340941720,1730140244320,-158.57642156,0.00040699,3]
[340941722,1730140244329,-500.0,0.00040699,3]
[340941724,1730140244339,-526.15873646,0.00040699,3]
[340941725,1730140244348,-340.20521631,0.00040699,3]
[340941727,1730140244358,-500.0,0.00040699,3]
[340941729,1730140244367,-500.0,0.00040699,3]
[340941732,1730140244377,-584.75910441,0.00040699,3]
[340941734,1730140244387,-598.75430101,0.00040699,3]
[340941736,1730140244398,-1130.82712646,0.00040699,2]
[340941738,1730140244408,-500.0,0.00040699,3]
[340941740,1730140244418,-500.0,0.00040699,3]
[340941742,1730140244427,-500.0,0.00040699,3]
[340941744,1730140244437,-512.16580065,0.00040699,3]
[340941746,1730140244447,-500.0,0.00040699,3]
[340941748,1730140244457,-539.41105234,0.00040699,3]
[340941750,1730140244466,-500.0,0.00040699,3]
[340941752,1730140244476,-500.0,0.00040699,3]
[340941754,1730140244488,-500.0,0.00040699,3]
[340941756,1730140244497,-178.41231283,0.00040699,3]
[340941758,1730140244508,-500.0,0.00040699,3]
[340941760,1730140244517,-297.36556989,0.00040699,3]
[340941762,1730140244526,-500.0,0.00040699,3]
[340941764,1730140244536,-500.0,0.00040699,3]
[340941766,1730140244546,-500.0,0.00040699,3]
[340941769,1730140244560,-151.0,0.00040699,14]
[340941771,1730140244572,-151.0,0.00040699,14]
[340941773,1730140244582,-152.539754,0.00040699,14]
[340941775,1730140244592,-500.0,0.00040699,3]
[340941777,1730140244602,-608.15342054,0.00040699,2]
[340941779,1730140244611,-500.0,0.00040699,3]
[340941781,1730140244622,-73469.11647432,0.000407,2]
[340941782,1730140244632,-18690.094185,0.000407,2]
[340941784,1730140244642,-419004.72172746,0.000407,2]
[340941799,1730140245980,-500.0,0.00040599,3]
[340941800,1730140245994,-500.0,0.00040599,3]
[340941801,1730140246004,-500.0,0.00040699,7]
[340941802,1730140246014,-231.79098741,0.000407,2]
[340941803,1730140246053,-6896.8,0.000407,2]